bitfinex-derivatives/quotes_ETHF0:USTF0_20220103
["timestamp","ask_amount","ask_price","bid_price","bid_amount"]
[1641208894816,2.00479,3835.3,3834.7,5.33743702]
[1641208895217,5.48,3836.1,3835.0,1.5]
[1641208895418,5.48,3836.1,3835.6,1.5]
[1641208895618,5.48,3836.1,3835.7,0.128157]
[1641208896316,15.78,3837.3,3835.7,1.628157]
[1641208896518,2.00479,3836.9,3836.0,2.00479]
[1641208909735,2.00479,3836.9,3836.1,1.5]
[1641208910635,2.00479,3836.9,3836.0,2.00479]
[1641208911539,2.00479,3836.9,3836.0,3.50479]
[1641208913138,2.00479,3836.9,3836.0,2.00479]
[1641208913541,2.00479,3836.9,3836.0,3.50479]
[1641208915342,2.00479,3836.9,3836.0,2.00479]
[1641208915542,15.78,3837.3,3836.3,1.5]
[1641208915743,15.78,3837.3,3836.3,2.0901]
[1641208915942,15.78,3837.3,3836.3,0.5901]
[1641208916348,15.78,3837.3,3836.4,1.30250563]
[1641208916543,15.78,3837.3,3836.5,0.128157]
[1641208916742,15.78,3837.3,3836.9,2.00479]
[1641208916942,42.11725387,3837.6,3836.9,2.00479]
[1641208917546,42.11725387,3837.6,3836.9,2.67303856]
[1641208920048,36.9056,3837.6,3836.9,2.67303856]
[1641208932462,19.0168,3837.6,3836.9,2.67303856]
[1641208933066,2.00479,3837.8,3836.9,2.67303856]
[1641208933666,2.00479,3837.8,3836.9,4.17303856]
[1641208933867,2.00479,3837.8,3836.9,2.67303856]
[1641208939175,2.00479,3837.8,3836.9,3.55069337]
[1641208943880,2.00479,3837.8,3837.1,1.3022953]
[1641208963206,2.00479,3838.1,3837.3,2.00479]
[1641208963405,2.00479,3838.1,3837.4,0.128157]
[1641208963606,2.00479,3838.1,3837.4,0.729157]
[1641208968109,2.00479,3838.1,3837.5,1.43261864]
[1641208968309,2.00479,3838.1,3837.5,2.51890309]
[1641208969109,2.00479,3838.1,3837.5,1.96393926]
[1641208970015,2.00479,3838.1,3837.6,1.43261267]
[1641208971214,2.00479,3838.1,3837.5,1.96393926]
[1641208974415,0.36260418,3838.2,3837.5,1.96393926]
[1641208974615,0.36260418,3838.2,3837.6,1.43261409]
[1641208975416,17.0831,3838.3,3837.9,2.00479]
[1641208975618,18.9778,3838.4,3837.9,2.00479]
[1641208975818,3.77373479,3838.6,3837.9,2.00479]
[1641208976616,0.36885821,3838.4,3837.9,2.00479]
[1641208980922,0.09248826,3838.4,3837.9,2.00479]
[1641208981124,1.18033587,3838.3,3837.9,2.00479]
[1641208982326,1.27282413,3838.4,3837.9,2.00479]
[1641208982525,1.27282413,3838.4,3837.9,2.75159]
[1641208985029,1.18033587,3838.3,3837.9,2.75159]
[1641208985228,1.18033587,3838.3,3837.9,2.00479]
[1641208988232,0.09248826,3838.4,3837.9,2.00479]
[1641208988233,1.27282413,3838.4,3837.9,2.00479]
[1641208991637,1.18033587,3838.3,3837.9,2.00479]
[1641208992940,1.27282413,3838.4,3837.9,2.00479]
[1641208995153,1.18033587,3838.3,3837.9,2.00479]
[1641208996552,1.18033587,3838.3,3838.2,1.30188161]
[1641208996753,1.18033587,3838.3,3838.2,2.92505116]
[1641208996954,0.09248826,3838.4,3838.2,2.92505116]
[1641208998055,1.18033587,3838.6,3838.2,2.92505116]
[1641208998255,1.18033587,3838.6,3838.2,2.69506016]
[1641208998455,1.18033587,3838.7,3838.2,2.69506016]
[1641208999056,1.18033587,3838.6,3838.2,2.69506016]
[1641209001563,1.18033587,3838.6,3838.3,2.00479]
[1641209001763,1.18033587,3838.6,3838.4,0.229991]
[1641209001967,1.47541984,3838.9,3838.4,0.229991]
[1641209003164,0.09247982,3839.0,3838.4,0.229991]
[1641209003364,18.23194479,3839.2,3838.4,0.229991]
[1641209003563,18.23194479,3839.2,3839.0,2.00479]
[1641209003764,1.76894479,3839.7,3839.1,0.229991]
[1641209003966,1.76894479,3839.7,3839.2,0.128157]
[1641209004465,0.09244739,3839.5,3839.1,0.98380119]
[1641209006267,0.09244739,3839.5,3839.2,0.128157]
[1641209006471,1.76894479,3840.0,3839.3,0.229991]
[1641209007571,17.1297,3840.7,3839.4,0.87765481]
[1641209007771,17.1297,3840.7,3839.9,2.00479]
[1641209007969,17.1297,3840.7,3839.9,3.85032269]
[1641209008372,17.1297,3840.7,3839.9,3.40999769]
[1641209008974,17.1297,3840.7,3840.0,0.128157]
[1641209010071,17.1297,3840.7,3839.9,3.40999769]
[1641209010671,17.1297,3840.7,3840.0,1.30128359]
[1641209011874,17.1297,3840.7,3840.0,1.98658359]
[1641209012078,17.1297,3840.7,3840.2,1.30123787]
[1641209012775,1.17963236,3840.6,3840.2,1.30123787]
[1641209013174,1.17963236,3840.6,3840.3,0.128157]
[1641209013376,1.17963236,3840.6,3840.4,0.229991]
[1641209013577,18.30933236,3840.7,3840.4,0.229991]
[1641209014576,17.1297,3840.7,3840.4,0.229991]
[1641209014879,1.47454045,3840.5,3840.4,1.10764581]
[1641209015279,1.47454045,3840.5,3840.4,2.40868899]
[1641209015477,1.47454045,3840.5,3840.4,1.53103418]
[1641209015677,1.47454045,3840.5,3840.4,3.53582418]
[1641209015678,1.1828146,3840.5,3840.4,3.53582418]
[1641209015876,1.1828146,3840.5,3840.4,7.70200218]
[1641209016076,1.1518146,3840.5,3840.4,7.70200218]
[1641209016878,1.47454045,3840.8,3840.4,7.70200218]
[1641209017180,1.47454045,3841.2,3840.4,9.1475471]
[1641209017380,1.47454045,3841.2,3840.4,4.9813691]
[1641209017679,1.47454045,3841.2,3841.1,2.00479]
[1641209017878,1.47454045,3841.2,3841.1,3.029481]
[1641209018079,1.47454045,3841.2,3841.1,3.85527236]
[1641209018279,0.46233937,3841.2,3841.1,3.85527236]
[1641209018679,0.73639402,3841.4,3841.2,0.229991]
[1641209018880,0.73639402,3841.4,3841.2,0.358148]
[1641209019682,0.73639402,3841.4,3841.3,2.00479]
[1641209020083,31.5669,3841.6,3841.3,2.00479]
[1641209020084,33.77695522,3841.6,3841.3,2.00479]
[1641209020284,18.26705522,3841.6,3841.4,0.229991]
[1641209020484,2.21005522,3841.9,3841.4,0.975291]
[1641209021685,2.21005522,3841.9,3841.8,2.00479]
[1641209021986,2.21005522,3841.9,3841.8,3.42202462]
[1641209025388,2.21005522,3842.1,3841.8,3.42202462]
[1641209027288,2.21005522,3842.1,3841.9,1.30066919]
[1641209027488,2.21005522,3842.1,3842.0,0.128157]
[1641209027990,2.21005522,3842.2,3842.0,0.128157]
[1641209028688,2.21005522,3842.2,3842.1,0.229991]
[1641209028889,2.21005522,3842.2,3842.0,0.128157]
[1641209029591,2.21005522,3842.2,3842.1,0.229991]
[1641209029792,2.21005522,3842.2,3842.0,0.128157]
[1641209030592,2.21005522,3842.2,3842.1,0.229991]
[1641209030992,2.21005522,3842.2,3842.0,0.128157]
[1641209031395,2.21005522,3842.2,3842.1,0.229991]
[1641209031597,2.21005522,3842.2,3841.9,1.30066919]
[1641209033095,2.21005522,3842.2,3842.0,0.229991]
[1641209033297,16.5079,3842.5,3842.0,0.229991]
[1641209033896,16.5079,3842.5,3841.9,1.30066919]
[1641209035710,16.5079,3842.5,3842.3,2.00479]
[1641209035908,17.0415,3842.7,3842.3,2.00479]
[1641209036110,16.2019,3843.1,3842.3,2.00479]
[1641209038215,1.5,3842.8,3842.3,2.00479]
[1641209040317,1.5,3843.0,3842.3,2.00479]
[1641209040917,0.09238797,3842.7,3842.3,2.00479]
[1641209041117,2.95164868,3842.5,3842.3,1.68718195]
[1641209042116,2.95164868,3842.6,3842.3,1.68718195]
[1641209043319,2.95164868,3842.5,3842.3,1.68718195]
[1641209044019,1.5,3842.4,3841.5,0.86857108]
[1641209044220,1.5,3842.2,3841.5,0.86857108]
[1641209044620,3.64084868,3842.5,3841.5,0.86857108]
[1641209044820,1.5,3842.1,3841.5,0.86857108]
[1641209045023,1.5,3841.9,3841.5,0.86857108]
[1641209045222,1.5,3841.6,3840.6,3.03715686]
[1641209045440,1.5,3841.4,3841.2,2.5799435]
[1641209045626,1.5,3841.4,3841.2,1.42230565]
[1641209045825,2.00479,3841.3,3841.2,1.42230565]
[1641209047025,2.09717797,3841.3,3840.8,0.86793503]
[1641209048225,1.47850137,3841.0,3840.8,0.86793503]
[1641209049225,1.47850137,3840.9,3840.8,0.229991]
[1641209050530,1.47850137,3841.0,3840.8,1.42230565]
[1641209051127,1.47850137,3840.9,3840.7,1.42230565]
[1641209051329,1.47850137,3840.9,3840.8,0.229991]
[1641209051528,1.47850137,3840.9,3840.7,1.42230565]
[1641209052928,1.86658961,3841.2,3840.7,0.86793503]
[1641209053130,1.86658961,3841.2,3840.6,1.52225337]
[1641209053330,1.77420164,3841.0,3840.6,1.52225337]
[1641209054329,1.47858951,3840.7,3840.6,1.52225337]
[1641209055436,1.47858951,3840.7,3840.6,1.75224437]
[1641209055632,1.47858951,3840.7,3840.6,1.52225337]
[1641209055833,1.47858951,3840.7,3840.6,0.65431834]
[1641209056333,1.77420164,3841.0,3840.6,0.65431834]
[1641209056533,1.5,3841.1,3840.6,0.65431834]
[1641209056534,2.67794194,3841.1,3840.6,0.65431834]
[1641209057436,1.17794194,3841.1,3840.6,0.65431834]
[1641209057840,0.09238797,3840.9,3840.6,0.65431834]
[1641209058637,1.5,3841.0,3840.6,0.65431834]
[1641209059338,1.17794194,3841.1,3840.6,0.65431834]
[1641209059738,0.09238797,3840.9,3840.6,0.65431834]
[1641209061239,1.17794194,3841.0,3840.6,0.65431834]
[1641209061538,1.5,3840.9,3840.1,2.00479]
[1641209061739,1.5,3840.9,3840.1,2.95634288]
[1641209062138,1.5,3840.9,3840.1,3.08449988]
[1641209062339,1.27032991,3841.0,3840.1,3.08449988]
[1641209063141,2.39377857,3841.1,3840.1,3.08449988]
[1641209063142,0.09238797,3840.8,3840.1,2.95634288]
[1641209064345,0.09238797,3840.8,3840.2,0.128157]
[1641209064544,1.27032991,3841.0,3840.7,1.30106349]
[1641209065145,1.17794194,3841.0,3840.7,1.30106349]
[1641209065344,0.09238797,3841.2,3840.7,1.30106349]
[1641209065345,1.17794194,3841.1,3840.7,1.30106349]
[1641209065547,1.17794194,3841.1,3840.7,2.11546349]
[1641209065946,2.00479,3840.9,3840.7,2.11546349]
[1641209066545,2.00479,3840.9,3840.7,2.97023436]
[1641209067147,2.00479,3840.9,3840.8,0.229991]
[1641209070863,2.00479,3840.9,3840.7,2.15583436]
[1641209072561,2.00479,3840.9,3840.7,0.85477087]
[1641209073163,0.14373656,3840.8,3840.7,0.85477087]
[1641209074864,0.14373656,3840.8,3839.8,1.30136148]
[1641209075064,0.14373656,3840.8,3839.8,2.51436921]
[1641209076068,0.14373656,3840.8,3839.8,3.38230424]
[1641209080673,0.14373656,3840.8,3839.9,1.42240768]
[1641209080873,0.14373656,3840.8,3840.0,0.128157]
[1641209082576,0.14373656,3840.8,3839.8,3.38230424]
[1641209082776,0.14373656,3840.8,3839.9,0.86793503]
[1641209083579,0.14373656,3840.8,3839.9,1.42240597]
[1641209086480,0.14373656,3840.8,3840.0,0.128157]
[1641209086882,0.14373656,3840.8,3839.9,1.42240597]
[1641209088584,0.14373656,3840.8,3840.0,0.128157]
[1641209091189,0.14373656,3840.8,3839.8,3.38230424]
[1641209091884,1.17794194,3840.7,3839.8,2.51436921]
[1641209092989,1.5,3840.6,3839.8,1.21300773]
[1641209093389,0.78115464,3840.5,3840.2,0.86793503]
[1641209093589,1.17794194,3840.1,3839.9,1.71213155]
[1641209093790,1.17794194,3840.1,3839.7,2.18486985]
[1641209093791,1.87184194,3840.1,3839.7,2.18486985]
[1641209093988,1.87184194,3840.1,3839.4,1.73604766]
[1641209094389,2.00479,3839.6,3839.4,1.73604766]
[1641209094789,2.00479,3839.6,3839.5,1.15974907]
[1641209095791,2.00479,3839.6,3839.2,0.69249091]
[1641209114506,2.00479,3839.6,3838.4,5.21147662]
[1641209115104,2.00479,3839.6,3838.5,0.38458135]
[1641209115505,2.00479,3839.6,3838.5,1.61656107]
[1641209115905,2.00479,3839.6,3838.6,0.38458135]
[1641209116308,2.00479,3839.6,3838.8,1.30171384]
[1641209116507,2.00479,3839.2,3838.9,0.128157]
[1641209116709,2.00479,3839.2,3839.0,0.229991]
[1641209116910,2.00479,3839.2,3838.9,0.128157]
[1641209117511,2.00479,3839.2,3839.0,0.229991]
[1641209118111,2.00479,3839.2,3838.9,0.128157]
[1641209118311,2.00479,3839.2,3839.1,0.55448523]
[1641209118515,2.00479,3839.2,3839.1,1.85623152]
[1641209119912,2.00479,3839.2,3839.1,1.30174629]
[1641209127321,2.00479,3839.2,3839.1,1.53173729]
[1641209127819,2.00479,3839.2,3839.1,1.30174629]
[1641209129421,2.00479,3839.2,3838.6,1.15613281]
[1641209129623,2.73909,3839.2,3838.6,1.15613281]
[1641209130222,4.23909,3839.2,3838.6,1.15613281]
[1641209130623,2.00479,3838.7,3838.6,1.15613281]
[1641209131025,2.00479,3838.7,3838.6,0.55454753]
[1641209132226,2.00479,3838.7,3838.6,0.78453853]
[1641209132424,2.00479,3838.7,3838.6,0.55454753]
[1641209132826,2.00479,3838.7,3838.5,0.99698331]
[1641209133627,2.00479,3838.7,3838.6,0.55455522]
[1641209134326,2.00479,3838.7,3838.6,0.78454622]
[1641209136330,2.00479,3838.7,3838.6,0.55455522]
[1641209137531,2.00479,3838.7,3838.6,2.00369643]
[1641209138533,2.00479,3838.7,3838.6,0.55455522]
[1641209138732,2.00479,3838.7,3838.6,1.71279746]
[1641209142037,2.00479,3838.7,3838.3,1.44914121]
[1641209142441,2.00479,3838.7,3838.5,1.1582597]
[1641209143039,2.00479,3838.7,3838.0,1.05605412]
[1641209143040,1.5,3838.6,3838.0,1.05605412]
[1641209143339,0.78157567,3838.4,3837.9,1.73604766]
[1641209143940,0.78157567,3838.4,3837.7,1.73604766]
[1641209144741,2.00479,3837.8,3837.7,1.73604766]
[1641209144946,2.00479,3837.8,3837.7,1.96603866]
[1641209145145,2.00479,3837.8,3837.5,2.74120552]
[1641209145946,2.00479,3837.8,3837.6,0.36977215]
[1641209146950,2.00479,3837.8,3837.7,0.229991]
[1641209148647,2.00479,3837.8,3837.6,0.36977215]
[1641209149048,2.00479,3837.8,3837.7,0.229991]
[1641209150348,2.00479,3837.8,3837.6,0.36977215]
[1641209150849,2.00479,3837.8,3837.5,1.00515786]
[1641209151851,2.00479,3837.8,3837.6,0.229991]
[1641209152254,2.00479,3837.8,3837.6,0.59975278]
[1641209153256,2.00479,3837.8,3837.7,1.44864352]
[1641209154556,2.00479,3837.8,3837.7,1.67863452]
[1641209155159,2.00479,3837.8,3837.7,0.229991]
[1641209155756,2.00479,3837.8,3837.6,1.44864352]
[1641209155956,2.00479,3837.8,3837.7,1.44864352]
[1641209156759,2.00479,3837.8,3837.7,0.229991]
[1641209159658,2.00479,3837.8,3837.6,1.15558418]
[1641209160858,2.00479,3837.8,3837.7,0.229991]
[1641209162061,2.00479,3837.8,3837.5,2.16074204]
[1641209162361,2.00479,3837.8,3837.7,0.55464068]
[1641209163765,2.00479,3837.8,3837.6,0.78463168]
[1641209163964,2.00479,3837.8,3837.6,0.55464068]
[1641209164665,2.00479,3837.8,3837.7,0.55464068]
[1641209164964,2.00479,3837.8,3837.7,0.78463168]
[1641209165163,2.00479,3837.8,3837.7,0.55464068]
[1641209165567,2.00479,3837.8,3837.6,0.55464068]
[1641209165765,2.00479,3837.8,3837.7,0.229991]
[1641209166166,2.00479,3837.8,3837.6,0.55464068]
[1641209166589,2.00479,3837.8,3837.7,0.229991]
[1641209167779,2.00479,3837.8,3837.7,0.78463168]
[1641209168579,2.00479,3837.8,3837.7,1.94021586]
[1641209169280,1e-08,3837.9,3837.7,1.94021586]
[1641209169679,21.7699,3838.7,3837.7,1.94021586]
[1641209169880,21.7699,3838.7,3837.8,1.30201043]
[1641209170082,21.7699,3838.7,3837.8,1.67175519]
[1641209170281,21.7699,3838.7,3837.8,3.38198005]
[1641209170483,21.7699,3838.7,3837.9,0.36974476]
[1641209170881,2.00479,3838.5,3837.9,0.36974476]
[1641209171083,2.00479,3838.5,3838.2,0.86557612]
[1641209171383,2.00479,3838.5,3838.3,0.229991]
[1641209171684,2.00479,3838.5,3838.2,1.92136226]
[1641209172483,2.00479,3838.5,3838.3,0.229991]
[1641209172683,2.00479,3838.5,3838.2,1.92136226]
[1641209173187,21.95569,3838.9,3838.3,0.358148]
[1641209173385,21.95569,3838.9,3838.3,1.019448]
[1641209174287,2.00479,3838.9,3838.4,1.42011584]
[1641209175086,2.00479,3838.9,3838.4,2.7219466]
[1641209175687,2.00479,3838.9,3838.4,1.42011584]
[1641209176087,2.00479,3838.9,3838.6,0.86557612]
[1641209176286,2.00479,3838.9,3838.7,0.229991]
[1641209177286,1e-08,3838.9,3838.7,0.229991]
[1641209177486,3.18631465,3839.5,3838.7,1.002591]
[1641209177885,1.18152465,3839.5,3838.7,1.002591]
[1641209178089,1.18152465,3839.5,3839.0,1.30163759]
[1641209178689,59.33932465,3839.7,3839.0,1.30163759]
[1641209178889,59.33932465,3839.7,3839.5,2.00479]
[1641209179089,1.18152465,3839.7,3839.6,0.229991]
[1641209179289,1.18152465,3839.7,3839.6,1.22993051]
[1641209179691,1.47688452,3840.0,3839.6,1.22993051]
[1641209179692,1.18152465,3840.0,3839.6,1.22993051]
[1641209180795,1.18152465,3840.1,3839.6,2.10745535]
[1641209181594,1.18152465,3840.1,3839.6,1.87746435]
[1641209181793,1.18152465,3840.1,3839.6,0.87752484]
[1641209182194,1.18152465,3840.0,3839.6,0.87752484]
[1641209183096,1.18152465,3840.1,3839.6,0.87752484]
[1641209184497,1.18152465,3839.9,3839.6,0.87752484]
[1641209185498,1.5,3840.0,3839.6,0.87752484]
[1641209185499,2.68152465,3840.0,3839.6,0.87752484]
[1641209185698,1.18152465,3840.0,3839.6,0.87752484]
[1641209186499,0.29552863,3839.9,3839.6,0.87752484]
[1641209186699,0.29552863,3839.9,3839.7,0.229991]
[1641209186899,0.29552863,3839.9,3839.6,0.87752484]
[1641209187300,0.29552863,3839.8,3839.6,0.87752484]
[1641209188102,1.18152465,3840.0,3839.6,0.87752484]
[1641209188301,1.18152465,3840.1,3839.6,0.87752484]
[1641209189304,1.18152465,3840.0,3839.6,0.87752484]
[1641209192003,1.18152465,3839.9,3839.6,0.87752484]
[1641209192202,1.18152465,3839.9,3839.7,0.229991]
[1641209192602,1.18152465,3839.9,3839.6,0.87752484]
[1641209193403,1.5,3839.8,3839.6,0.87752484]
[1641209193805,1.18152465,3839.9,3839.6,0.87752484]
[1641209194205,1.5,3839.8,3839.6,0.87752484]
[1641209194404,2.68152465,3839.9,3839.6,0.87752484]
[1641209194603,1.18152465,3839.9,3839.6,0.87752484]
[1641209195305,1.46941987,3839.9,3839.6,0.87752484]
[1641209195905,1.46941987,3839.9,3839.7,0.229991]
[1641209196105,1.46941987,3839.9,3839.6,0.87752484]
[1641209196805,1.46941987,3839.9,3839.7,0.229991]
[1641209198307,1.46941987,3839.9,3839.6,0.87752484]
[1641209198910,1.5,3839.7,3839.6,0.87752484]
[1641209199206,2.96941987,3839.9,3839.6,1.10751584]
[1641209199406,1.46941987,3839.9,3839.6,0.87752484]
[1641209199808,0.88298133,3839.8,3839.6,0.87752484]
[1641209200509,0.88298133,3839.8,3839.5,2.00479]
[1641209202309,0.88298133,3839.8,3839.6,0.229991]
[1641209202509,0.88298133,3839.9,3839.6,0.229991]
[1641209203009,0.88298133,3839.9,3839.5,2.00479]
[1641209204012,0.88298133,3839.8,3839.5,2.00479]
[1641209204608,0.88298133,3839.8,3839.6,0.229991]
[1641209205508,0.88298133,3839.9,3839.6,0.229991]
[1641209205710,0.88298133,3839.9,3839.5,2.00479]
[1641209207214,0.88298133,3839.7,3839.5,2.00479]
[1641209208315,0.88298133,3839.7,3839.6,0.229991]
[1641209208615,0.88298133,3839.7,3839.5,2.00479]
[1641209210614,0.88298133,3839.7,3839.6,0.229991]
[1641209211616,0.88298133,3839.7,3839.5,2.00479]
[1641209211817,0.88298133,3839.7,3839.6,0.229991]
[1641209212014,0.88298133,3839.7,3839.5,2.00479]
[1641209214420,0.28654158,3839.9,3839.5,2.00479]
[1641209214617,1.46806623,3839.9,3839.5,2.00479]
[1641209215419,0.28654158,3839.8,3839.5,2.00479]
[1641209215619,0.28654158,3839.8,3839.6,0.229991]
[1641209215818,0.28654158,3839.8,3839.5,2.00479]
[1641209216019,0.28654158,3839.9,3839.5,2.00479]
[1641209218225,1.47688452,3839.7,3839.5,2.00479]
[1641209218928,2.15578452,3839.7,3839.5,2.00479]
[1641209220231,0.28654158,3839.6,3839.5,2.00479]
[1641209220929,1.47688452,3839.6,3839.5,2.00479]
[1641209221128,1.43359315,3839.5,3839.3,0.86535665]
[1641209221328,1.47688452,3839.6,3839.3,0.86535665]
[1641209221530,1.47688452,3839.6,3839.4,0.229991]
[1641209221829,1.47688452,3839.6,3839.3,0.86535665]
[1641209224939,1.47688452,3839.6,3839.4,0.229991]
[1641209225437,1.47688452,3839.6,3839.3,0.86535665]
[1641209225637,0.28654158,3839.7,3839.2,0.55453649]
[1641209225837,2.00479,3839.8,3839.1,2.00479]
[1641209226839,1.18227332,3839.3,3839.2,1.42219837]
[1641209227038,1.18227332,3839.3,3839.2,1.65218937]
[1641209227340,1.47784165,3839.6,3839.2,1.65218937]
[1641209228138,1.47784165,3839.6,3839.2,0.78453073]
[1641209228342,0.28840685,3839.3,3839.2,0.78453073]
[1641209229442,0.28840685,3839.7,3839.2,0.78453073]
[1641209230044,0.28840685,3839.7,3839.2,0.55453973]
[1641209230442,0.28840685,3839.7,3839.5,0.86723751]
[1641209230641,0.28840685,3839.7,3839.6,0.229991]
[1641209231040,0.28840685,3839.7,3839.5,0.86723751]
[1641209231642,0.28840685,3839.7,3839.6,0.229991]
[1641209232042,3.48263165,3839.8,3839.6,1.22082302]
[1641209232241,2.00479,3840.3,3839.6,1.22082302]
[1641209232645,1.77328433,3840.0,3839.6,1.22082302]
[1641209233645,4.22155247,3840.3,3839.6,1.22082302]
[1641209233845,2.00479,3840.3,3839.7,0.86723751]
[1641209234647,2.00479,3840.3,3839.6,1.57666053]
[1641209236449,2.00479,3840.3,3839.6,0.70942302]
[1641209237049,2.00479,3840.3,3839.6,1.57666053]
[1641209238250,1.18212548,3839.8,3839.7,0.86723751]
[1641209238650,1.92422548,3839.8,3839.7,0.86723751]
[1641209239050,1.92422548,3839.8,3839.6,0.70942302]
[1641209239051,0.7421,3839.8,3839.6,1.57666053]
[1641209239255,0.7421,3839.8,3839.7,0.229991]
[1641209239853,2.00479,3840.3,3839.7,1.09722851]
[1641209240051,1.18212193,3839.8,3839.7,1.09722851]
[1641209240654,1.18212193,3839.8,3839.7,0.86723751]
[1641209240854,1.18212193,3839.8,3839.7,1.09722851]
[1641209241554,1.18212193,3839.8,3839.7,0.86723751]
[1641209241854,1.18212193,3839.8,3839.6,0.70942302]
[1641209242758,1.18212193,3839.8,3839.7,0.86631978]
[1641209243158,1.18212193,3839.8,3839.7,1.09631078]
[1641209243360,1.18212193,3839.8,3839.7,0.86631978]
[1641209244962,1.18212193,3839.8,3839.7,1.09631078]
[1641209246363,1.18212193,3839.8,3839.7,0.86631978]
[1641209246564,1.18212193,3839.8,3839.7,1.09631078]
[1641209246864,1.18212193,3839.8,3839.7,0.86631978]
[1641209247464,1.18212193,3839.8,3839.7,1.09631078]
[1641209249469,1.18212193,3840.0,3839.7,0.229991]
[1641209250570,1.18212193,3840.0,3839.6,1.5757428]
[1641209252470,0.88595215,3839.7,3839.6,1.5757428]
[1641209252670,0.88595215,3839.7,3839.6,1.8057338]
[1641209253071,0.88595215,3839.7,3839.6,1.5757428]
[1641209253572,0.88595215,3839.7,3839.6,2.13018472]
[1641209254170,1.18212193,3840.0,3839.6,1.5757428]
[1641209254374,1.18212193,3839.8,3839.6,0.70942302]
[1641209255873,1.18212193,3839.9,3839.6,0.70942302]
[1641209256072,1.18212193,3839.9,3839.7,0.229991]
[1641209256675,1.18212193,3839.8,3839.7,0.229991]
[1641209257474,1.18212193,3839.8,3839.6,0.70942302]
[1641209258675,1.18212193,3839.9,3839.6,0.70942302]
[1641209258975,1.18212193,3839.9,3839.7,0.229991]
[1641209260478,1.18212193,3839.9,3839.6,0.70942302]
[1641209261981,1.18212193,3839.8,3839.6,0.70942302]
[1641209262880,1.18212193,3839.8,3839.6,0.93941402]
[1641209263080,1.18212193,3839.8,3839.6,0.70942302]
[1641209263682,1.18212193,3839.8,3839.7,0.229991]
[1641209264089,1.18212193,3839.8,3839.6,0.70942302]
[1641209264991,1.18212193,3839.8,3839.6,1.5757428]
[1641209265191,1.18212193,3839.9,3839.7,0.229991]
[1641209265591,1.18212193,3839.9,3839.6,1.5757428]
[1641209266194,1.18212193,3839.9,3839.7,0.229991]
[1641209266695,1.18212193,3840.0,3839.6,0.70942302]
[1641209268498,1.18212193,3840.0,3839.6,1.5757428]
[1641209269702,1.18212193,3840.1,3839.7,1.42075324]
[1641209269899,1.18212193,3840.1,3839.7,2.11545324]
[1641209270499,1.18212193,3840.1,3839.9,0.86631978]
[1641209270701,0.24721274,3840.2,3840.0,0.229991]
[1641209270900,0.09411115,3840.3,3840.0,0.358148]
[1641209271703,0.09411115,3840.5,3840.0,0.358148]
[1641209271903,0.09411115,3840.5,3840.4,2.00479]
[1641209272101,0.09411115,3840.5,3840.4,2.93608487]
[1641209272513,1.47763476,3840.8,3840.4,2.93608487]
[1641209272703,1.47763476,3840.9,3840.4,2.70609387]
[1641209275405,1.47763476,3840.8,3840.4,2.70609387]
[1641209277207,6.68486776,3840.9,3840.4,2.70609387]
[1641209278309,1.47763476,3840.8,3840.4,2.70609387]
[1641209279514,1.47763476,3840.8,3840.4,0.70130387]
[1641209280012,1.47763476,3840.8,3840.4,2.70609387]
[1641209281824,1.18015212,3840.5,3840.4,2.83425087]
[1641209282017,1.18015212,3840.5,3840.4,4.56424187]
[1641209282316,1.47763476,3840.8,3840.4,4.56424187]
[1641209282516,1.47763476,3840.8,3840.4,5.43056165]
[1641209282719,0.88500541,3840.8,3840.4,5.43056165]
[1641209283117,0.88500541,3840.8,3840.5,1.5]
[1641209283318,0.88500541,3840.8,3840.6,1.53109004]
[1641209283818,0.88500541,3840.9,3840.6,1.53109004]
[1641209284821,0.88500541,3841.0,3840.6,2.39740982]
[1641209286422,0.88500541,3841.0,3840.6,3.89740982]
[1641209286825,0.88500541,3841.1,3840.8,0.86631978]
[1641209287025,0.88500541,3841.1,3840.9,0.229991]
[1641209287827,0.88500541,3841.2,3840.9,1.09631078]
[1641209288425,0.88500541,3841.2,3841.1,1.30088747]
[1641209288625,0.88500541,3841.2,3841.1,2.66471844]
[1641209289626,0.88500541,3841.2,3841.1,1.36383097]
[1641209289827,1.47763476,3841.7,3841.1,1.36383097]
[1641209290227,1.47763476,3841.7,3841.1,1.13383997]
[1641209291333,1.47763476,3841.7,3841.2,0.128157]
[1641209291528,1.47763476,3841.7,3841.1,1.13383997]
[1641209291729,1.5,3841.4,3841.0,0.86631978]
[1641209291927,1.5,3841.5,3841.0,0.86631978]
[1641209292128,2.00479,3841.2,3840.9,0.86631978]
[1641209293528,1.71274218,3841.1,3840.7,0.128157]
[1641209294531,1.18101235,3840.9,3840.7,0.128157]
[1641209294730,1.18101235,3840.9,3840.8,0.229991]
[1641209295533,1.18101235,3841.0,3840.8,0.229991]
[1641209297435,0.8840715,3841.0,3840.8,0.229991]
[1641209298042,0.8840715,3841.0,3840.9,2.00479]
[1641209299844,0.8840715,3841.1,3840.9,2.00479]
[1641209300042,0.8840715,3841.1,3841.0,0.229991]
[1641209301343,0.8840715,3841.1,3840.9,2.00479]
[1641209301543,1.6955715,3841.1,3840.9,2.234781]
[1641209302749,0.8840715,3841.0,3840.9,2.234781]
[1641209303648,1.18101235,3841.3,3840.9,2.234781]
[1641209303649,0.8840715,3841.1,3840.9,2.234781]
[1641209305154,0.8840715,3841.1,3840.9,3.047781]
[1641209306152,0.8840715,3841.3,3840.9,3.047781]
[1641209307152,0.8840715,3841.4,3840.9,3.047781]
[1641209308154,0.8840715,3841.4,3841.3,2.00479]
[1641209308357,0.8840715,3841.4,3841.3,2.83057172]
[1641209308555,0.8840715,3841.4,3841.3,3.06056272]
[1641209310961,1.18101235,3841.7,3841.3,2.83057172]
[1641209310962,0.8840715,3841.5,3841.3,2.83057172]
[1641209311757,0.8840715,3841.5,3841.4,0.229991]
[1641209312056,0.8840715,3841.5,3841.3,2.83057172]
[1641209312760,0.8840715,3841.5,3841.3,3.06056272]
[1641209313658,0.8840715,3841.6,3841.3,3.06056272]
[1641209314259,0.8840715,3841.5,3841.3,3.06056272]
[1641209315259,0.8840715,3841.5,3841.3,2.83057172]
[1641209316065,0.23469672,3842.0,3841.4,0.229991]
[1641209316066,0.8840715,3841.7,3841.4,0.229991]
[1641209316261,0.8840715,3841.7,3841.3,2.83057172]
[1641209317162,0.8840715,3841.6,3841.3,2.83057172]
[1641209317561,0.8840715,3841.6,3841.4,0.229991]
[1641209317762,0.8840715,3841.6,3841.5,0.128157]